[Event "GCT Superbet Romania 2024"]
[Site "Bucharest"]
[Date "2024.07.03"]
[Round "7.5"]
[White "Gukesh D"]
[Black "Caruana, Fabiano"]
[Result "1/2-1/2"]
[ECO "C50"]
[WhiteElo "2763"]
[BlackElo "2805"]
[Annotator "TA"]
[PlyCount "124"]
[EventDate "2024.06.24"]
[EventType "tourn"]
[EventCountry "ROU"]
[SourceTitle "playchess.com"]
[Source "ChessBase"]
[SourceQuality "1"]
[TimeControl "7200+30"]

{[%evp 9,124,8,33,2,23,18,27,16,20,23,25,16,20,25,37,0,0,0,0,0,0,0,0,0,0,0,0,0,0,0,0,0,0,0,24,0,30,36,25,6,18,-16,-18,-26,-6,0,-12,0,-6,-13,-19,-48,-12,-7,0,-47,-19,-26,0,-29,-23,-70,-68,-66,-40,-46,0,0,0,0,0,0,0,0,0,0,0,0,0,0,0,0,0,0,0,-13,-14,-28,-43,-80,-70,-79,-74,-147,-158,-156,-151,-156,-154,-152,-48,-100,-39,-48,0,0,0,0,0,0,0,0,0,0,0,0,0]} 1. e4 {[%emt 0:00:06]} e5 {[%emt 0:00:05]} 2. Nf3 {[%emt 0:00:06]} Nc6 {[%emt 0:00:03]} 3. Bc4 {[%emt 0:00:08]} Bc5 {[%emt 0:00:07]} 4. d3 {[%emt 0:00:13]} d6 {[%emt 0:03:44]} 5. a4 {[%emt 0:09:30]} a5 {[%emt 0:17:39]} 6. Nc3 {[%emt 0:04:37]} h6 {[%emt 0:04:02]} 7. Be3 {[%emt 0:01:00]} Bb4 {[%emt 0:17:17]} 8. O-O {[%emt 0:03:42] White has an edge.} Bxc3 {[%emt 0:00:04]} 9. bxc3 {[%emt 0:00:04]} Nf6 {[%emt 0:00:09]} 10. Nd2 {[%emt 0:04:42]} O-O {[%emt 0:02:54]} 11. f4 {[%emt 0:04:32]} Be6 {[%emt 0:08:08]} 12. Bb5 {[%emt 0:14:51]} Ng4 {[%emt 0:05:05]} 13. Qe1 {[%emt 0:00:32]} Nxe3 {[%emt 0:02:07]} 14. Qxe3 {[%emt 0:00:06]} exf4 {[%emt 0:00:37]} 15. Rxf4 {[%emt 0:01:03]} Ne5 {[%emt 0:01:44]} 16. d4 {[%emt 0:00:59]} Ng6 {[%emt 0:00:04]} 17. Rf2 {[%emt 0:15:06]} Qg5 {[%emt 0:00:22]} 18. Nf1 {[%emt 0:15:51]} Rad8 {[%emt 0:09:51]} 19. Rb1 {[%emt 0:05:17]} b6 {[%emt 0:02:02]} 20. g3 {[%emt 0:06:14]} Ne7 {[%emt 0:07:33]} 21. Qe2 {[%emt 0:08:24]} Bg4 {[%emt 0:01:08]} 22. Qd3 {[%emt 0:02:03]} Kh8 {[%emt 0:13:40]} 23. Ne3 {[%emt 0:02:05]} Bh3 {[%emt 0:01:07]} 24. Qd2 {[%emt 0:03:23]} d5 {[%emt 0:06:16]} 25. exd5 {[%emt 0:03:44]} (25. Nxd5 {simplifies} Nxd5 26. Qxg5 hxg5 27. exd5 Rxd5 28. Bc4) 25... Nxd5 {[%emt 0:00:10]} 26. Re1 {[%emt 0:00:36]} c5 {[%emt 0:11:59]} 27. Nxd5 {[%emt 0:05:55]} Qxd5 {[%emt 0:00:04]} 28. Rf4 {[%emt 0:00:24]} Qd6 {[%emt 0:02:33]} 29. Qf2 {[%emt 0:00:31]} Be6 {[%emt 0:00:49]} 30. Bd3 {[%emt 0:04:01]} Rfe8 {[%emt 0:01:46]} 31. Rfe4 {[%emt 0:01:37]} Rf8 {[%emt 0:00:46]} 32. Rf4 {[%emt 0:02:31]} Rde8 {[%emt 0:01:09]} 33. Rb1 {[%emt 0:04:53]} Rc8 {[%emt 0:02:22]} 34. Rf1 {[%emt 0:01:42]} cxd4 {[%emt 0:01:20]} 35. cxd4 {[%emt 0:00:15]} (35. Qxd4 $11 Rfd8 36. Rb1) 35... Bc4 $15 {[%emt 0:00:17]} 36. Qe3 {[%emt 0:04:24]} f6 {[%emt 0:00:08]} 37. Rb1 {[%emt 0:01:37]} Bxd3 {[%emt 0:05:22]} (37... Qa3 $15 38. d5 Bxd3 (38... Qxa4 $2 {loses.} 39. Qe4 $18) (38... Bxd5 39. Qxb6 Qc3 40. Qd4 $11) 39. Qxd3 Rc3) 38. Qxd3 $11 {[%emt 0:00:02]} Qc6 {[%emt 0:00:56]} 39. d5 {[%emt 0:00:50]} Qc5+ {[%emt 0:00:53]} 40. Rf2 {[%emt 0:01:00]} Rfe8 {[%emt 0:00:35]} 41. Rb5 {[%emt 0:00:28]} Qd6 {[%emt 0:00:35]} 42. Qd4 {[%emt 0:01:07]} Rc5 {[%emt 0:02:13]} 43. Rxc5 {[%emt 0:00:16]} bxc5 {[%emt 0:00:03][%mdl 4096] Endgame. KQR-KQR} 44. Qd3 {[%emt 0:00:08]} Qd7 {[%emt 0:00:38]} 45. Rf4 {[%emt 0:01:36]} Re5 {[%emt 0:00:34]} 46. c4 {[%emt 0:00:34]} Qxa4 {[%emt 0:00:04]} 47. Rf1 {[%emt 0:00:29]} Qd7 $36 {[%emt 0:01:07][%mdl 2048] Black fights for an advantage.} 48. Rb1 {[%emt 0:00:38]} Re8 {[%emt 0:00:04]} 49. Qa3 {[%emt 0:00:31]} Qe7 {[%emt 0:00:45]} 50. Rf1 {[%emt 0:00:29]} Ra8 {[%emt 0:00:13]} 51. Qa4 {[%emt 0:00:26]} ({White should play} 51. Qf3) 51... Qe3+ $17 {[%emt 0:00:17]} 52. Kg2 {[%emt 0:00:29]} Rb8 {[%emt 0:00:06]} 53. Rf2 {[%emt 0:00:37][%cal Oa4c2] Prevents Rb2.} Qe4+ {[%emt 0:02:23]} 54. Kh3 {[%emt 0:00:00] [#]} Rb4 {[%emt 0:00:45]} (54... Kg8 $1 $17 55. Qc6 Qe7 (55... Qxc4 56. Qe6+ Kh7 57. Rxf6 $11)) 55. Rf4 {[%emt 0:01:02]} (55. Qd7 $15) 55... Qe2 {[%emt 0:00:19]} (55... Qe7 $17 56. Qxa5 g5) 56. Qd7 $15 {[%emt 0:00:06]} Rb2 {[%emt 0:00:50]} (56... Rb8 $15 57. d6 a4) 57. Qc8+ $11 {[%emt 0:00:09] The position is equal.} Kh7 {[%emt 0:00:02]} 58. Qf5+ {[%emt 0:00:05]} Kg8 {[%emt 0:00:15]} 59. Qc8+ {[%emt 0:00:38]} Kh7 {[%emt 0:00:36]} 60. Qf5+ {[%emt 0:00:05]} Kg8 {[%emt 0:00:01]} 61. Qc8+ {[%emt 0:00:09]} Kh7 {[%emt 0:00:03]} 62. Qf5+ {[%emt 0:00:07]} Kg8 {[%emt 0:00:13] Weighted Error Value: White=0.10 (very precise) /Black=0.11 (very precise) .  Mistake:       	White=3     	Black=4      Inaccurate:     	White=5     	Black=5      OK:         	White=15    	Black=26     Best:        	White=9     	Black=3} (62... Kh8 $5 63. Qc8+ $8 Kh7 $11) 1/2-1/2

[Event "GCT Superbet Romania 2024"]
[Site "Bucharest"]
[Date "2024.07.04"]
[Round "8.1"]
[White "Vachier-Lagrave, Maxime"]
[Black "So, Wesley"]
[Result "1/2-1/2"]
[ECO "C54"]
[WhiteElo "2732"]
[BlackElo "2757"]
[Annotator "RC"]
[PlyCount "106"]
[EventDate "2024.06.24"]
[EventType "tourn"]
[EventCountry "ROU"]
[SourceTitle "playchess.com"]
[Source "ChessBase"]
[SourceQuality "1"]
[TimeControl "7200+30"]

1. e4 {[%emt 0:00:03]} e5 {[%emt 0:00:07]} 2. Nf3 {[%emt 0:00:02]} Nc6 {[%emt 0:00:06]} 3. Bc4 {[%emt 0:00:03]} Bc5 {[%emt 0:00:10]} 4. c3 {[%emt 0:00:03]} Nf6 {[%emt 0:00:06]} 5. d3 {[%emt 0:00:02]} d6 {[%emt 0:00:06]} 6. O-O {[%emt 0:00:08]} a5 {[%emt 0:00:25]} 7. Nbd2 {[%emt 0:00:36]} O-O {[%emt 0:00:10]} 8. h3 {[%emt 0:00:10]} h6 {[%emt 0:00:19]} 9. Re1 {[%emt 0:01:03]} a4 {[%emt 0:00:09]} 10. Nf1 {[%emt 0:03:15]} Bd7 {[%emt 0:00:07]} 11. d4 {[%emt 0:07:19]} Bb6 {[%emt 0:00:28]} 12. Ng3 {[%emt 0:02:15]} Re8 {[%emt 0:00:15]} 13. Be3 {[%emt 0:05:29]} exd4 {[%emt 0:01:27]} 14. Nxd4 {[%emt 0:00:47]} Ne5 {[%emt 0:10:49]} 15. Bf1 {[%emt 0:03:39]} Ng6 {[%emt 0:00:17]} 16. Nf3 {[%emt 0:09:07]} Nxe4 {[%emt 0:26:42]} 17. Nxe4 {[%emt 0:00:11]} Rxe4 {[%emt 0:00:04]} 18. Bxb6 {[%emt 0:00:10]} Rxe1 {[%emt 0:00:05]} 19. Nxe1 {[%emt 0:00:07]} cxb6 {[%emt 0:00:03]} 20. Qxd6 {[%emt 0:00:07]} Bc6 {[%emt 0:00:17]} 21. Rd1 {[%emt 0:04:48]} Qg5 {[%emt 0:04:59]} 22. Qd2 {[%emt 0:06:49]} Nf4 {[%emt 0:11:05]} 23. g3 {[%emt 0:01:05]} Ne6 {[%emt 0:00:04]} 24. Qxg5 {[%emt 0:01:30]} Nxg5 {[%emt 0:06:27]} 25. h4 {[%emt 0:02:16]} Nf3+ {[%emt 0:00:07]} 26. Nxf3 {[%emt 0:00:05]} Bxf3 {[%emt 0:00:04]} 27. Rd6 {[%emt 0:05:33]} Bc6 {[%emt 0:36:14]} 28. Bg2 {[%emt 0:00:38]} Rc8 {[%emt 0:00:21]} 29. a3 {[%emt 0:02:04]} Kf8 {[%emt 0:00:41]} 30. Kf1 {[%emt 0:06:09]} Ke7 {[%emt 0:02:46]} 31. Rd4 {[%emt 0:00:07]} b5 {[%emt 0:01:06]} 32. Bh3 {[%emt 0:01:51]} Rf8 {[%emt 0:05:31]} 33. Bf5 {[%emt 0:02:56]} Re8 {[%emt 0:01:31]} 34. Bd3 {[%emt 0:03:34]} Kf8 {[%emt 0:01:10]} 35. h5 {[%emt 0:01:49]} Re5 {[%emt 0:00:12]} 36. Be2 {[%emt 0:01:53]} Bg2+ {[%emt 0:01:36]} 37. Kxg2 {[%emt 0:00:12]} Rxe2 {[%emt 0:00:03]} 38. Rb4 {[%emt 0:00:25]} Re5 {[%emt 0:00:03]} 39. g4 {[%emt 0:00:54]} Rc5 {[%emt 0:02:42]} 40. f3 {[%emt 0:03:55]} f5 {[%emt 0:02:52]} 41. Kg3 {[%emt 0:01:14]} Ke7 {[%emt 0:00:32]} 42. Rd4 {[%emt 0:01:55]} fxg4 {[%emt 0:01:28]} 43. fxg4 {[%emt 0:01:23]} Re5 {[%emt 0:00:43]} 44. Kf4 {[%emt 0:00:47]} Rg5 {[%emt 0:00:24]} 45. Rd1 {[%emt 0:02:28]} Rc5 {[%emt 0:00:26]} 46. Rd4 {[%emt 0:03:18]} Rg5 {[%emt 0:00:06]} 47. Rd1 {[%emt 0:03:30]} Rc5 {[%emt 0:00:04]} 48. Rd4 {[%emt 0:00:06]} Rg5 {[%emt 0:00:14]} 49. Re4+ {[%emt 0:00:12]} Kd7 {[%emt 0:00:01]} 50. Re5 {[%emt 0:00:02]} Rxe5 51. Kxe5 Ke7 {[%emt 0:00:02]} 52. Kd5 {[%emt 0:00:02]} Kf6 {[%emt 0:00:02]} 53. Kc5 {[%emt 0:00:01]} Kg5 1/2-1/2

[Event "GCT Superbet Romania 2024"]
[Site "Bucharest"]
[Date "2024.07.04"]
[Round "8.2"]
[White "Firouzja, Alireza"]
[Black "Nepomniachtchi, Ian"]
[Result "1/2-1/2"]
[ECO "D02"]
[WhiteElo "2737"]
[BlackElo "2770"]
[Annotator "RC"]
[PlyCount "89"]
[EventDate "2024.06.24"]
[EventType "tourn"]
[EventCountry "ROU"]
[SourceTitle "playchess.com"]
[Source "ChessBase"]
[SourceQuality "1"]
[TimeControl "7200+30"]

1. d4 {[%emt 0:00:04]} Nf6 {[%emt 0:00:06]} 2. Nf3 {[%emt 0:00:04]} d5 {[%emt 0:00:07]} 3. Bf4 {[%emt 0:00:06]} c5 {[%emt 0:00:05]} 4. e3 {[%emt 0:00:05]} Nc6 {[%emt 0:00:05]} 5. Nbd2 {[%emt 0:00:05]} Nh5 {[%emt 0:00:04]} 6. dxc5 {[%emt 0:00:08]} Nxf4 {[%emt 0:00:05]} 7. exf4 {[%emt 0:00:07]} a5 {[%emt 0:00:01]} 8. Bb5 {[%emt 0:00:08]} e6 {[%emt 0:00:54]} 9. Ne5 {[%emt 0:00:16]} Bd7 {[%emt 0:00:04]} 10. Nxd7 {[%emt 0:00:05]} Qxd7 {[%emt 0:00:04]} 11. Qf3 {[%emt 0:00:06]} Qc7 {[%emt 0:00:03]} 12. O-O-O {[%emt 0:18:01]} Be7 {[%emt 0:00:26]} 13. f5 {[%emt 0:06:21]} O-O {[%emt 0:00:22]} 14. Qg3 {[%emt 0:01:26]} Qxg3 {[%emt 0:13:36]} 15. fxg3 {[%emt 0:00:24]} Nd4 {[%emt 0:25:35]} 16. Bd3 {[%emt 0:02:13]} Bxc5 {[%emt 0:00:48]} 17. fxe6 {[%emt 0:15:27]} fxe6 {[%emt 0:00:34]} 18. Rhe1 {[%emt 0:04:55]} Rae8 {[%emt 0:01:45]} 19. g4 {[%emt 0:09:55]} Rf2 {[%emt 0:01:34]} 20. c3 {[%emt 0:03:17]} Nc6 {[%emt 0:00:10]} 21. Nf3 {[%emt 0:01:25]} g6 {[%emt 0:08:04]} 22. Ng5 {[%emt 0:08:46]} Bd6 {[%emt 0:12:28]} 23. Rxe6 {[%emt 0:33:32]} Rxe6 {[%emt 0:09:37]} 24. Nxe6 {[%emt 0:00:04]} Kf7 {[%emt 0:00:34]} 25. Ng5+ {[%emt 0:01:21]} Kf6 {[%emt 0:01:02]} 26. Nf3 {[%emt 0:00:06]} Bf4+ {[%emt 0:00:46]} 27. Kb1 {[%emt 0:00:05]} Rxg2 {[%emt 0:00:06]} 28. Bb5 {[%emt 0:03:56]} Ne7 {[%emt 0:02:22]} 29. h3 {[%emt 0:02:17]} Rg3 {[%emt 0:02:51]} 30. Rf1 {[%emt 0:03:45]} g5 {[%emt 0:05:20]} 31. Nd4 {[%emt 0:01:57]} Ng6 {[%emt 0:08:28]} 32. Rh1 {[%emt 0:00:51]} Rg2 {[%emt 0:02:04]} 33. Nb3 {[%emt 0:03:28]} b6 {[%emt 0:01:53]} 34. Rd1 {[%emt 0:01:32]} Ne7 {[%emt 0:03:04]} 35. Nd4 {[%emt 0:00:57]} Be3 {[%emt 0:05:46]} 36. Nc6 {[%emt 0:00:58]} Rg1 {[%emt 0:00:20]} 37. Rxg1 {[%emt 0:00:06]} Bxg1 {[%emt 0:00:02]} 38. Nxe7 {[%emt 0:00:07]} Kxe7 {[%emt 0:00:03]} 39. Kc2 {[%emt 0:00:11]} Kd6 {[%emt 0:00:05]} 40. Kd3 {[%emt 0:00:20]} Ke5 {[%emt 0:00:04]} 41. Bc6 {[%emt 0:00:10]} Kd6 {[%emt 0:00:01]} 42. Bb5 {[%emt 0:00:04]} Ke5 {[%emt 0:00:03]} 43. Bc6 {[%emt 0:00:04]} Kd6 {[%emt 0:00:01]} 44. Bb5 {[%emt 0:00:04]} Ke5 {[%emt 0:00:07]} 45. Bc6 {[%emt 0:00:04]} 1/2-1/2

[Event "GCT Superbet Romania 2024"]
[Site "Bucharest"]
[Date "2024.07.04"]
[Round "8.3"]
[White "Gukesh D"]
[Black "Giri, Anish"]
[Result "1/2-1/2"]
[ECO "E49"]
[WhiteElo "2763"]
[BlackElo "2745"]
[Annotator "TA"]
[PlyCount "60"]
[EventDate "2024.06.24"]
[EventType "tourn"]
[EventCountry "ROU"]
[SourceTitle "playchess.com"]
[Source "ChessBase"]
[SourceQuality "1"]
[TimeControl "7200+30"]

{[%evp 19,60,-18,-10,-14,-9,-12,0,-7,0,-52,-68,-63,-12,-54,-57,-68,-33,-38,0,-27,-42,-47,-31,-42,-4,-39,-27,-47,-31,-21,-26,-33,-28,-75,-35,-58,-47,-49,0,-69,0,-62,0]} 1. d4 {[%emt 0:00:05]} Nf6 {[%emt 0:00:04]} 2. c4 {[%emt 0:00:05]} e6 {[%emt 0:00:04]} 3. Nc3 {[%emt 0:00:05]} Bb4 {[%emt 0:00:04]} 4. e3 {[%emt 0:00:09]} O-O {[%emt 0:00:06]} 5. Bd3 {[%emt 0:00:11]} d5 {[%emt 0:00:10]} 6. a3 {[%emt 0:00:36]} Bxc3+ {[%emt 0:01:02]} 7. bxc3 {[%emt 0:00:06]} dxc4 {[%emt 0:00:05]} 8. Bxc4 {[%emt 0:00:05]} c5 {[%emt 0:00:04]} 9. Ne2 {[%emt 0:00:43]} Qc7 {[%emt 0:02:38]} 10. Bd3 {[%emt 0:00:08]} Nc6 {[%emt 0:00:40]} 11. f4 {[%emt 0:00:19]} b6 {[%emt 0:05:26]} 12. O-O {[%emt 0:00:08]} Bb7 {[%emt 0:00:06]} 13. Ng3 {[%emt 0:00:07] The position is equal.} Ne7 {[%emt 0:00:39]} 14. e4 {[%emt 0:01:53]} (14. c4 $11) 14... cxd4 $1 $15 {[%emt 0:00:17]} 15. cxd4 {[%emt 0:00:05]} Qc3 $1 {[%emt 0:00:10][%csl LRa1,LRd4]} 16. Ra2 {[%emt 0:00:08]} (16. Qe2 $5) 16... Qxd4+ {[%emt 0:00:05]} 17. Kh1 $1 {[%emt 0:00:03] [#] And now e5 would win.} Rad8 {[%emt 0:32:44][%cal Rf6e4] Threatens to win with ...Nxe4!} (17... Bxe4 18. Bxe4 Qxd1 19. Rxd1 Nxe4 20. Nxe4 $18) (17... Rfd8 $5 18. Rd2 $8 Qc5 $15 (18... Bxe4 $2 19. Bxe4 $18)) 18. Rd2 {[%emt 0:00:08]} Qe3 {[%emt 0:07:54][%cal Oe7g6]} (18... Bxe4 $2 19. Bxe4 $18) 19. Rf3 {[%emt 0:29:00]} Qc5 {[%emt 0:00:52]} 20. Bb2 {[%emt 0:02:49]} Ng6 $1 {[%emt 0:40:24]} 21. h3 {[%emt 0:22:28]} Rfe8 {[%emt 0:07:18]} 22. Rc2 {[%emt 0:17:28]} Qe7 {[%emt 0:05:32][%cal Of6e4] [#] White must now prevent ...Nxe4!} 23. Qe1 {[%emt 0:23:55]} Nh4 {[%emt 0:01:42]} ({Don't play} 23... Nxf4 $6 24. Rxf4 (24. Bb5 e5 $14) 24... Rxd3 25. Bxf6 gxf6 26. Nh5 $14) 24. Re3 {[%emt 0:00:25]} Rc8 {[%emt 0:01:32]} 25. Rxc8 {[%emt 0:14:44]} Rxc8 {[%emt 0:00:04]} 26. Bf1 {[%emt 0:02:23]} (26. Qf2 $11) 26... h6 {[%emt 0:02:47]} 27. Qd2 {[%emt 0:03:20]} Rd8 {[%emt 0:00:58]} 28. Qe1 {[%emt 0:00:04]} Rc8 {[%emt 0:00:17]} 29. Qd2 {[%emt 0:00:05]} Rd8 {[%emt 0:00:04]} 30. Qe1 {[%emt 0:01:01]} Rc8 {[%emt 0:00:36] Weighted Error Value: White=0.15 (very precise) /Black=0.17 (very precise) .  Mistake:       	White=2     	Black=1      Inaccurate:     	White=3     	Black=4      OK:         	White=7     	Black=4      Best:        	White=2     	---        Strong:       	White=1     	Black=3} (30... Rd7 $15) 1/2-1/2

[Event "GCT Superbet Romania 2024"]
[Site "Bucharest"]
[Date "2024.07.04"]
[Round "8.4"]
[White "Caruana, Fabiano"]
[Black "Praggnanandhaa R"]
[Result "1/2-1/2"]
[ECO "A13"]
[WhiteElo "2805"]
[BlackElo "2747"]
[Annotator "TA"]
[PlyCount "62"]
[EventDate "2024.06.24"]
[EventType "tourn"]
[EventCountry "ROU"]
[SourceTitle "playchess.com"]
[Source "ChessBase"]
[SourceQuality "1"]
[TimeControl "7200+30"]

{[%evp 9,62,22,21,20,18,20,18,15,24,14,11,14,7,14,15,16,20,7,29,10,27,22,29,28,27,22,23,22,21,27,41,14,22,3,4,7,11,14,10,6,8,2,4,0,8,3,11,0,7,0,8,0,4,0,8]} 1. c4 {[%emt 0:00:06]} Nf6 {[%emt 0:01:14]} 2. Nf3 {[%emt 0:00:14]} e6 {[%emt 0:00:09][%cal Be7e6,Be6d5,Bd5d4][%mdl 32]} 3. b3 {[%emt 0:00:07]} d5 {[%emt 0:01:29]} 4. Bb2 {[%emt 0:00:14]} c5 {[%emt 0:00:06]} 5. cxd5 {[%emt 0:00:09]} exd5 {[%emt 0:00:06]} 6. g3 {[%emt 0:00:07]} Nc6 {[%emt 0:04:26]} 7. Bg2 {[%emt 0:00:09]} d4 {[%emt 0:01:07]} 8. O-O {[%emt 0:00:13]} Be7 {[%emt 0:00:21]} 9. Na3 {[%emt 0:00:09]} O-O {[%emt 0:00:07]} 10. Nc4 {[%emt 0:00:10]} Be6 {[%emt 0:03:04]} 11. e3 {[%emt 0:01:16]} Rc8 {[%emt 0:07:15]} 12. exd4 {[%emt 0:19:08]} cxd4 {[%emt 0:17:36]} 13. Re1 {[%emt 0:01:10][%cal Oe1e6]} Bc5 {[%emt 0:12:02]} 14. Nfe5 {[%emt 0:24:55]} Bxc4 {[%emt 0:08:20]} 15. Nxc6 {[%emt 0:26:17]} bxc6 {[%emt 0:02:18]} 16. Qc2 {[%emt 0:00:34]} Bxb3 {[%emt 0:10:11]} 17. Qxc5 {[%emt 0:00:07]} Bd5 {[%emt 0:00:04]} 18. Bxd4 {[%emt 0:00:14]} Bxg2 {[%emt 0:05:44]} 19. Kxg2 {[%emt 0:00:11][%cal Od4f6] Black is weak on the dark squares} a6 {[%emt 0:00:28]} 20. Qc4 {[%emt 0:06:15]} c5 $1 {[%emt 0:10:01] The position is equal.} 21. Bxc5 {[%emt 0:17:49]} Qxd2 {[%emt 0:00:59]} 22. Qd4 {[%emt 0:00:13]} Rfd8 {[%emt 0:06:14][%cal Bf8d8,Bd8d2,Bd2c2][%mdl 32]} 23. Qxd2 {[%emt 0:00:10]} Rxd2 {[%emt 0:00:03]} 24. Be3 {[%emt 0:00:13]} Rdc2 {[%emt 0:01:50]} 25. a3 {[%emt 0:03:55]} h6 {[%emt 0:04:38]} 26. Bd4 {[%emt 0:00:34]} R8c6 {[%emt 0:02:27]} 27. Rad1 {[%emt 0:01:52]} Ra2 {[%emt 0:04:40]} 28. Ra1 {[%emt 0:01:47]} Rd2 {[%emt 0:00:26]} 29. Rad1 {[%emt 0:00:36]} Ra2 {[%emt 0:02:01]} 30. Ra1 {[%emt 0:00:07]} Rd2 {[%emt 0:01:11]} 31. Rad1 {[%emt 0:00:09]} Ra2 {[%emt 0:01:29] An even fight not without its subleties.   Weighted Error Value: White=0.04 (flawless) /Black=0.04 (flawless) .  Inaccurate:     	White=1     	---        OK:         	White=9     	Black=11     Best:        	---       	Black=1      Strong:       	---       	Black=1} 1/2-1/2